fUSD/lending_fUSD_20251118
["ID","MTS","AMOUNT","RATE_DAILY","PERIOD"]
[394297448,1763427032747,-500.0,0.00018523,2]
[394297450,1763427032756,-196.38324022,0.00018523,2]
[394297452,1763427032766,-500.0,0.00018523,2]
[394297454,1763427032775,-648.65161704,0.00018523,2]
[394297455,1763427032784,-500.0,0.00018523,2]
[394297457,1763427032793,-500.0,0.00018523,2]
[394297459,1763427032802,-437.2820533,0.00018523,2]
[394297461,1763427032811,-500.0,0.00018523,2]
[394297463,1763427032820,-500.0,0.00018523,2]
[394297465,1763427032829,-500.0,0.00018523,2]
[394297467,1763427032838,-500.0,0.00018523,2]
[394297468,1763427032847,-500.0,0.00018523,2]
[394297470,1763427032856,-500.0,0.00018523,2]
[394297472,1763427032866,-500.0,0.00018523,2]
[394297474,1763427032875,-500.0,0.00018523,2]
[394297476,1763427032884,-500.0,0.00018523,2]
[394297478,1763427032894,-523.55530009,0.00018523,2]
[394297480,1763427032903,-500.0,0.00018523,2]
[394297482,1763427032912,-500.0,0.00018523,2]
[394297483,1763427032921,-500.0,0.00018523,2]
[394297485,1763427032930,-500.0,0.00018523,2]
[394297487,1763427032940,-500.0,0.00018523,2]
[394297489,1763427032949,-500.0,0.00018523,2]
[394297491,1763427032961,-500.0,0.00018523,2]
[394297493,1763427032970,-500.0,0.00018523,2]
[394297495,1763427032979,-500.0,0.00018523,2]
[394297497,1763427032988,-500.0,0.00018523,2]
[394297499,1763427032998,-500.0,0.00018523,2]
[394297500,1763427033009,-500.0,0.00018523,2]
[394297502,1763427033019,-606.71504826,0.00018523,2]
[394297504,1763427033030,-500.0,0.00018523,2]
[394297506,1763427033043,-500.0,0.00018523,2]
[394297508,1763427033054,-500.0,0.00018523,2]
[394297510,1763427033064,-500.0,0.00018523,2]
[394297512,1763427033074,-500.0,0.00018523,2]
[394297514,1763427033083,-500.0,0.00018523,2]
[394297516,1763427033094,-500.0,0.00018523,2]
[394297517,1763427033103,-500.0,0.00018523,2]
[394297519,1763427033115,-500.0,0.00018523,2]
[394297521,1763427033124,-500.0,0.00018523,2]
[394297523,1763427033135,-500.0,0.00018523,2]
[394297525,1763427033144,-300.0,0.00018523,2]
[394297527,1763427033154,-500.0,0.00018523,2]
[394297529,1763427033164,-500.0,0.00018523,2]
[394297531,1763427033173,-500.0,0.00018523,2]
[394297533,1763427033182,-500.0,0.00018523,2]
[394297535,1763427033192,-500.0,0.00018523,2]
[394297537,1763427033201,-375.0,0.00018523,2]
[394297538,1763427033213,-500.0,0.00018523,2]
[394297540,1763427033223,-272.12583906,0.00018523,2]
[394297542,1763427033232,-285.06927952,0.00018523,2]
[394297544,1763427033241,-98269.75193075,0.00018524,2]
[394297556,1763427033472,-26903.0410361,0.00018524,2]
[394297557,1763427033484,-315.58304838,0.00018524,2]
[394297558,1763427033495,-684.40695162,0.00018524,2]
[394297559,1763427037722,-371.34964444,0.00018524,2]
[394297560,1763427037733,-430.62335998,0.00018524,2]
[394297646,1763427039807,-558795.77253283,0.00018524,2]
[394297648,1763427039816,-500.18826948,0.00018573,2]
[394297649,1763427039826,-501.91245929,0.00018573,2]
[394297651,1763427039836,-500.0,0.00018573,2]
[394297653,1763427039845,-500.0,0.00018573,2]
[394297655,1763427039854,-500.0,0.00018573,2]
[394297657,1763427039864,-161.49360073,0.00018573,2]
[394297658,1763427039874,-500.0,0.00018573,2]
[394297659,1763427039883,-528.12485151,0.00018573,2]
[394297660,1763427039892,-500.0,0.00018573,2]
[394297661,1763427039901,-500.0,0.00018573,2]
[394297662,1763427039910,-500.0,0.00018573,2]
[394297663,1763427039919,-500.0,0.00018573,2]
[394297664,1763427039928,-500.0,0.00018573,2]
[394297665,1763427039938,-530.33053363,0.00018573,2]
[394297666,1763427039947,-592.81498937,0.00018573,2]
[394297667,1763427039956,-500.0,0.00018573,2]
[394297668,1763427039969,-500.0,0.00018573,2]
[394297669,1763427039978,-500.0,0.00018573,2]
[394297670,1763427039987,-500.0,0.00018573,2]
[394297671,1763427039997,-500.86660231,0.00018573,2]
[394297672,1763427040006,-500.0,0.00018573,2]
[394297673,1763427040015,-283.38,0.00018797,2]
[394297674,1763427040027,-400.0,0.000189,6]
[394297675,1763427040039,-167.02,0.00018969,2]
[394297676,1763427040048,-316.38,0.00019048,2]
[394297677,1763427040058,-195.0,0.00019058,2]
[394297678,1763427040069,-283.38,0.00019071,2]
[394297679,1763427040079,-195.0,0.00019091,2]
[394297680,1763427040088,-1000.0,0.00019121,2]
[394297681,1763427040098,-403.67238193,0.00019121,2]
[394297682,1763427040108,-500.86745626,0.00019121,2]
[394297683,1763427040118,-1000.0,0.00019121,2]
[394297684,1763427040128,-500.0,0.00019121,2]
[394297685,1763427040138,-1000.0,0.00019121,2]
[394297686,1763427040149,-355.7670847,0.00019121,2]
[394297687,1763427040158,-1000.0,0.00019121,2]
[394297688,1763427040168,-1000.0,0.00019121,2]
[394297689,1763427040178,-593.30755412,0.00019121,2]
[394297690,1763427040188,-250.0,0.00019148,2]
[394297691,1763427040198,-420.0,0.00019151,2]
[394297692,1763427040209,-1680.0,0.00019205,2]
[394297693,1763427040226,-420.0,0.00019283,2]
[394297694,1763427040236,-1200.0,0.00019285,2]
[394297695,1763427040246,-1445.0,0.00019543,2]
[394297696,1763427040256,-1009.78090184,0.00019668,2]
[394297697,1763427040266,-338.79794235,0.00019668,2]
[394297698,1763427040276,-672.80486097,0.00019668,2]
[394297699,1763427040286,-1500.0,0.00019668,2]
[394297700,1763427040296,-1500.0,0.00019668,2]
[394297701,1763427040306,-316.38,0.00019762,2]
[394297702,1763427040316,-273.35,0.00019912,2]
[394297703,1763427040325,-800.13979988,0.00020216,2]
[394297704,1763427040335,-1740.06689584,0.00020216,2]
[394297705,1763427040344,-316.38,0.00020476,2]
[394297706,1763427040353,-239.0,0.0002067,2]
[394297707,1763427040363,-587.0,0.00020905,2]
[394297708,1763427040372,-6340.81709786,0.0002104,2]
[394297709,1763427040382,-6513.23604826,0.0002104,2]
[394297710,1763427040392,-562.0,0.00021047,2]
[394297711,1763427040401,-2351.0,0.00021069,2]
[394297712,1763427040410,-316.38,0.0002119,2]
[394297713,1763427040420,-232.98646754,0.00021773,2]
[394297714,1763427040430,-316.38,0.00021905,2]
[394297715,1763427040439,-153016.0878502,0.00022261,2]
[394297716,1763427040449,-162.67023792,0.00022273,2]
[394297717,1763427040459,-500.0,0.00022273,2]
[394297718,1763427040473,-339.27294743,0.00022273,2]
[394297719,1763427040482,-500.0,0.00022273,2]
[394297720,1763427040491,-500.0,0.00022273,2]
[394297721,1763427040500,-500.0,0.00022273,2]
[394297722,1763427040510,-500.0,0.00022273,2]
[394297723,1763427040519,-309.66167998,0.00022273,2]
[394297724,1763427040528,-500.0,0.00022273,2]
[394297725,1763427040537,-500.0,0.00022273,2]
[394297726,1763427040547,-2669.23856597,0.00022528,2]
[394297727,1763427040556,-501.49587419,0.00022821,2]
[394297728,1763427040565,-823.0,0.00022821,2]
[394297729,1763427040575,-169.68610358,0.00023062,2]
[394297730,1763427040585,-500.0,0.00023094,2]
[394297731,1763427040594,-34142.5041873,0.00023095,2]
[394297732,1763427040603,-3292.0,0.00023114,2]
[394297733,1763427040612,-6340.81709786,0.00023606,2]
[394297734,1763427040622,-6513.23604826,0.00023606,2]
[394297735,1763427040631,-152.26052409,0.0002479,2]
[394297736,1763427040640,-172.33683286,0.0002479,2]
[394297737,1763427040650,-151.2,0.0002479,2]
[394297738,1763427040659,-500.0,0.00024799,2]
[394297739,1763427040668,-900.0,0.000248,9]
[394297740,1763427040677,-358488.636319,0.000248,3]
[394297741,1763427040687,-56603.4688925,0.0002489,3]
[394297742,1763427040696,-500.0,0.00024899,2]
[394297743,1763427040706,-500.0,0.00024899,2]
[394297744,1763427040719,-151.0,0.000249,7]
[394297745,1763427040729,-151.0,0.000249,7]
[394297746,1763427040738,-264.568359,0.000249,7]
[394297747,1763427040748,-151.0,0.000249,7]
[394297748,1763427040757,-264.568359,0.000249,7]
[394297749,1763427040767,-151.0,0.000249,7]
[394297751,1763427040776,-151.0,0.000249,7]
[394297753,1763427040786,-264.568359,0.000249,7]
[394297755,1763427040795,-151.0,0.000249,7]
[394297756,1763427040804,-264.568359,0.000249,7]
[394297757,1763427040818,-151.0,0.000249,7]
[394297758,1763427040830,-151.0,0.000249,7]
[394297759,1763427040844,-151.0,0.000249,7]
[394297760,1763427040856,-152.548501,0.000249,7]
[394297761,1763427040868,-198.259546,0.000249,7]
[394297762,1763427040878,-198.259546,0.000249,7]
[394297763,1763427040889,-198.259546,0.000249,7]
[394297764,1763427040901,-151.0,0.000249,7]
[394297765,1763427040913,-198.259546,0.000249,7]
[394297766,1763427040925,-151.0,0.000249,7]
[394297767,1763427040935,-151.0,0.000249,7]
[394297768,1763427040947,-151.0,0.000249,7]
[394297769,1763427040959,-151.0,0.000249,7]
[394297770,1763427040974,-151.0,0.000249,7]
[394297771,1763427040986,-151.0,0.000249,7]
[394297772,1763427040998,-151.0,0.000249,7]
[394297773,1763427041010,-151.0,0.000249,7]
[394297774,1763427041022,-151.0,0.000249,7]
[394297775,1763427041033,-151.0,0.000249,7]
[394297776,1763427041047,-299.002942,0.000249,7]
[394297777,1763427041057,-151.0,0.000249,7]
[394297778,1763427041068,-151.0,0.000249,7]
[394297779,1763427041080,-151.0,0.000249,7]
[394297780,1763427041092,-151.0,0.000249,7]
[394297781,1763427041104,-151.0,0.000249,7]
[394297782,1763427041117,-151.0,0.000249,7]
[394297783,1763427041128,-151.0,0.000249,7]
[394297784,1763427041140,-154.429044,0.000249,7]
[394297785,1763427041152,-151.0,0.000249,7]
[394297786,1763427041165,-151.0,0.000249,7]
[394297787,1763427041176,-178.240614,0.000249,7]
[394297788,1763427041188,-178.240614,0.000249,7]
[394297790,1763427041201,-178.240614,0.000249,7]
[394297792,1763427041212,-151.0,0.000249,7]
[394297793,1763427041228,-178.240614,0.000249,7]
[394297794,1763427041239,-151.0,0.000249,7]
[394297795,1763427041251,-151.0,0.000249,7]
[394297796,1763427041263,-151.0,0.000249,7]
[394297797,1763427041275,-151.0,0.000249,7]
[394297798,1763427041287,-151.0,0.000249,7]
[394297799,1763427041299,-151.0,0.000249,7]
[394297800,1763427041309,-228.601072,0.000249,7]
[394297801,1763427041321,-151.0,0.000249,7]
[394297802,1763427041333,-151.0,0.000249,7]
[394297803,1763427041345,-151.0,0.000249,7]
[394297804,1763427041359,-151.0,0.000249,7]
[394297805,1763427041371,-151.0,0.000249,7]
[394297806,1763427041382,-151.0,0.000249,7]
[394297807,1763427041393,-151.0,0.000249,7]
[394297808,1763427041405,-1400.0,0.000249,9]
[394297809,1763427041418,-151.0,0.000249,7]
[394297810,1763427041428,-151.0,0.000249,7]
[394297811,1763427041438,-152.419978,0.000249,7]
[394297812,1763427041448,-151.0,0.000249,7]
[394297813,1763427041459,-151.0,0.000249,7]
[394297814,1763427041472,-151.0,0.000249,7]
[394297815,1763427041484,-151.0,0.000249,7]
[394297816,1763427041497,-151.0,0.000249,7]
[394297817,1763427041508,-151.0,0.000249,7]
[394297818,1763427041519,-151.0,0.000249,7]
[394297819,1763427041528,-151.0,0.000249,7]
[394297820,1763427041538,-176.310314,0.000249,7]
[394297821,1763427041548,-151.0,0.000249,7]
[394297822,1763427041559,-151.0,0.000249,7]
[394297823,1763427041570,-151.0,0.000249,7]
[394297824,1763427041582,-151.0,0.000249,7]
[394297825,1763427041594,-151.0,0.000249,7]
[394297826,1763427041605,-151.0,0.000249,7]
[394297827,1763427041615,-151.0,0.000249,7]
[394297828,1763427041626,-172.857707,0.000249,7]
[394297829,1763427041636,-151.0,0.000249,7]
[394297830,1763427041648,-151.0,0.000249,7]
[394297831,1763427041659,-155.385662,0.000249,7]
[394297832,1763427041670,-151.0,0.000249,7]
[394297833,1763427041682,-151.0,0.000249,7]
[394297834,1763427041693,-151164.592415,0.000249,3]
[394297835,1763427041704,-151.0,0.000249,7]
[394297836,1763427041716,-151.0,0.000249,7]
[394297837,1763427041727,-151.0,0.000249,7]
[394297838,1763427041737,-151.0,0.000249,7]
[394297839,1763427041748,-151.0,0.000249,7]
[394297840,1763427041761,-151.0,0.000249,7]
[394297841,1763427041771,-151.0,0.000249,7]
[394297842,1763427041782,-151.0,0.000249,7]
[394297843,1763427041793,-300.135521,0.000249,7]
[394297844,1763427041803,-151.0,0.000249,7]
[394297845,1763427041814,-192.683611,0.000249,7]
[394297846,1763427041824,-300.135521,0.000249,7]
[394297847,1763427041834,-192.683611,0.000249,7]
[394297848,1763427041845,-300.135521,0.000249,7]
[394297849,1763427041856,-192.683611,0.000249,7]
[394297850,1763427041866,-300.135521,0.000249,7]
[394297851,1763427041876,-192.683611,0.000249,7]
[394297852,1763427041887,-151.0,0.000249,7]
[394297853,1763427041898,-151.0,0.000249,7]
[394297854,1763427041908,-151.0,0.000249,7]
[394297855,1763427041919,-173.65,0.000249,7]
[394297856,1763427041930,-240.97154,0.000249,7]
[394297857,1763427041941,-173.65,0.000249,7]
[394297858,1763427041951,-151.0,0.000249,7]
[394297859,1763427041962,-173.65,0.000249,7]
[394297860,1763427041977,-173.65,0.000249,7]
[394297861,1763427041988,-151.0,0.000249,7]
[394297862,1763427041999,-151.0,0.000249,7]
[394297863,1763427042009,-151.0,0.000249,7]
[394297864,1763427042020,-151.0,0.000249,7]
[394297865,1763427042035,-151.0,0.000249,7]
[394297866,1763427042045,-172.221913,0.000249,7]
[394297867,1763427042055,-151.0,0.000249,7]
[394297868,1763427042065,-151.0,0.000249,7]
[394297869,1763427042077,-151.0,0.000249,7]
[394297870,1763427042088,-151.0,0.000249,7]
[394297871,1763427042098,-151.0,0.000249,7]
[394297872,1763427042110,-204.569042,0.000249,7]
[394297873,1763427042121,-151.0,0.000249,7]
[394297874,1763427042132,-151.0,0.000249,7]
[394297875,1763427042143,-151.0,0.000249,7]
[394297876,1763427042155,-151.0,0.000249,7]
[394297877,1763427042166,-151.0,0.000249,7]
[394297878,1763427042177,-553.0,0.00024911,2]
[394297879,1763427042189,-324.07,0.0002498,2]
[394297880,1763427042200,-150.99,0.0002498,2]
[394297881,1763427042211,-7295.68,0.0002498,2]
[394297882,1763427042225,-150.99,0.0002498,2]
[394297883,1763427042236,-232.98646754,0.00025074,2]
[394297884,1763427042247,-4609.0,0.00025357,2]
[394297885,1763427042258,-151.0,0.00026005,7]
[394297886,1763427042269,-151.0,0.00026005,7]
[394297887,1763427042280,-151.0,0.00026005,7]
[394297888,1763427042291,-151.0,0.00026005,7]
[394297889,1763427042302,-151.0,0.00026005,7]
[394297890,1763427042313,-151.0,0.00026005,7]
[394297891,1763427042324,-151.0,0.00026005,7]
[394297892,1763427042335,-151.0,0.00026005,7]
[394297893,1763427042345,-151.0,0.00026005,7]
[394297894,1763427042356,-151.0,0.00026005,7]
[394297895,1763427042366,-151.0,0.00026005,7]
[394297896,1763427042376,-151.0,0.00026005,7]
[394297897,1763427042387,-151.0,0.00026005,7]
[394297898,1763427042398,-535.00453351,0.00026172,2]
[394297899,1763427042408,-6340.81709786,0.00026173,2]
[394297900,1763427042419,-6513.23604826,0.00026173,2]
[394297901,1763427042429,-10093.04,0.00026591,2]
[394297902,1763427042440,-6014.61,0.00026591,2]
[394297903,1763427042451,-500.0,0.00027397,2]
[394297904,1763427042462,-151.570359,0.00027397,7]
[394297905,1763427042476,-278.25,0.000274,7]
[394297906,1763427042487,-194.81,0.000274,7]
[394297907,1763427042498,-5372.0,0.00027818,2]
[394297908,1763427042509,-206.19675439,0.00027824,2]
[394297909,1763427042519,-232.98646754,0.00028374,2]
[394297910,1763427042530,-4954.60962303,0.0002874,2]
[394297911,1763427042560,-1386.20747483,0.0002874,2]
[394297912,1763427042570,-31.29252521,0.0002874,2]
[394297945,1763427043416,-156.00669795,0.00018473,2]
[394297946,1763427043426,-4263.99330205,0.0002874,2]
[394297947,1763427043439,-2217.950221,0.0002874,2]
[394297948,1763427043450,-1000.0,0.00030089,90]
[394297949,1763427043460,-1000.0,0.00030089,90]
[394297951,1763427043474,-382.049779,0.00030089,90]
[394297959,1763427046533,-156.00669791,0.00024249,2]
[394297960,1763427046543,-617.950221,0.00030089,90]
[394297961,1763427046553,-239.859,0.00030089,90]
[394297962,1763427046564,-168.0,0.00031289,2]
[394297963,1763427046574,-6340.81709786,0.00031306,2]
[394297964,1763427046584,-6513.23604826,0.00031306,2]
[394297965,1763427046594,-232.98646754,0.00031674,2]
[394297966,1763427046604,-168.0,0.00031972,2]
[394297967,1763427046615,-168.0,0.00032221,2]
[394297968,1763427046624,-168.0,0.00032869,2]
[394297969,1763427046635,-151.0,0.00032877,31]
[394297970,1763427046644,-168.0,0.00033003,2]
[394297971,1763427046654,-168.0,0.00033782,2]
[394297972,1763427046664,-742.56679497,0.00033873,2]
[394297973,1763427046681,-1835.62,0.00033873,2]
[394297974,1763427046693,-276.28750168,0.00033873,2]
[394297975,1763427046708,-3486.34280121,0.00033873,2]
[394297976,1763427046721,-969.43336725,0.00033873,2]
[394297983,1763427061234,200.0,0.00041675,30]
[394297984,1763427064530,499.47760368,0.00030006,120]
[394297985,1763427068311,195.0,0.00029998,120]
[394297987,1763427124759,200.0,0.00041675,30]
[394297988,1763427126209,298.56374414,0.00041675,30]
[394297989,1763427128950,151.0,0.00041675,30]
[394297990,1763427129621,151.0,0.00041675,30]
[394297991,1763427130264,151.0,0.00041675,30]
[394297992,1763427130924,151.0,0.00041675,30]
[394297993,1763427131613,151.0,0.00041675,30]
[394297994,1763427132247,151.0,0.00041675,30]
[394297995,1763427132890,151.0,0.00041675,30]
[394297996,1763427133548,151.0,0.00041675,30]
[394297997,1763427134217,151.0,0.00041675,30]
[394297998,1763427134897,151.0,0.00041675,30]
[394297999,1763427135687,151.0,0.00041675,30]
[394298000,1763427136435,249.38015306,0.00041675,30]
[394298001,1763427142243,200.0,0.00041675,30]
[394298002,1763427142570,300.0,0.00041675,30]
[394298003,1763427255576,5248.26872424,0.0004168,30]
[394298004,1763427362113,200.0,0.0004168,30]
[394298006,1763427443228,200.0,0.0004168,30]
[394298007,1763427443708,300.0,0.0004168,30]
[394298008,1763427661579,200.0,0.00041677,30]
[394298009,1763427745208,200.0,0.00041677,30]
[394298010,1763427745650,300.0,0.00041677,30]
[394298012,1763427806496,366.06143917,0.00041677,120]
[394298013,1763427835917,425.15915498,0.00041677,120]
[394298016,1763427961133,200.0,0.00041677,30]
[394298027,1763428042433,200.0,0.00041677,30]
[394298028,1763428042848,300.0,0.00041677,30]
[394298038,1763428103982,645.48,0.00013699,2]
[394298320,1763428231989,-292.9772869,0.00018097,2]
[394298321,1763428232002,-33.47467114,0.00018097,2]
[394298322,1763428232013,-250.0,0.00018197,2]
[394298323,1763428232023,-333.2322,0.00018197,2]
[394298324,1763428232033,-500.0,0.00018222,2]
[394298325,1763428232043,-244.94300673,0.00018322,2]
[394298326,1763428232053,-500.0,0.00018422,2]
[394298327,1763428232063,-492.36347135,0.00018422,2]
[394298328,1763428232073,-1200.0,0.00018521,2]
[394298329,1763428232084,-1200.0,0.00018522,2]
[394298330,1763428232095,-300.0,0.00018522,2]
[394298331,1763428232104,-300.0,0.00018522,2]
[394298332,1763428232116,-300.0,0.00018522,2]
[394298333,1763428232127,-514.29277186,0.00018523,2]
[394298334,1763428232138,-233.2,0.00018523,2]
[394298335,1763428232148,-500.0,0.00018523,2]
[394298336,1763428232158,-160.77470551,0.000186,2]
[394298337,1763428232169,-500.0,0.000186,2]
[394298338,1763428232179,-250.0,0.00019989,2]
[394298339,1763428232189,-250.0,0.00020017,2]
[394298340,1763428232199,-1612.32745071,0.00020017,2]
[394298341,1763428232210,-649.19577694,0.00020017,2]
[394298342,1763428232230,-238.47677235,0.00020017,2]
[394298343,1763428232240,-342.97092283,0.00020017,2]
[394298344,1763428232249,-195.0,0.00020044,2]
[394298345,1763428232260,-150.0,0.00020045,2]
[394298346,1763428232269,-279.87109988,0.00020187,2]
[394298347,1763428232280,-365.60890012,0.00020187,2]
[394298348,1763428232291,-420.0,0.00020199,2]
[394298349,1763428232301,-420.0,0.00020199,2]
[394298350,1763428232311,-420.0,0.00020199,2]
[394298351,1763428232321,-1680.0,0.00020296,2]
[394298352,1763428232331,-587.0,0.00022027,2]
[394298353,1763428232341,-587.0,0.00022027,2]
[394298354,1763428232352,-587.0,0.00022027,2]
[394298355,1763428232364,-2351.0,0.00022242,2]
[394298356,1763428232374,-823.0,0.00024022,2]
[394298358,1763428232385,-314.0,0.00024022,2]
[394298360,1763428232394,-151.0,0.0002416,2]
[394298361,1763428232406,-151.0,0.0002416,2]
[394298362,1763428232417,-151.0,0.0002416,2]
[394298363,1763428232427,-151.0,0.0002416,2]
[394298364,1763428232437,-151.0,0.0002416,2]
[394298365,1763428232448,-151.0,0.0002416,2]
[394298366,1763428232458,-151.0,0.0002416,2]
[394298367,1763428232468,-151.0,0.0002416,2]
[394298368,1763428232478,-151.0,0.0002416,2]
[394298369,1763428232489,-151.0,0.0002416,2]
[394298370,1763428232499,-151.0,0.0002416,2]
[394298371,1763428232509,-151.0,0.0002416,2]
[394298372,1763428232519,-151.0,0.0002416,2]
[394298373,1763428232530,-151.0,0.0002416,2]
[394298374,1763428232540,-300.0,0.00024173,2]
[394298375,1763428232550,-7295.68,0.00024174,2]
[394298376,1763428232560,-150.99,0.00024174,2]
[394298377,1763428232570,-2948.92,0.00024174,2]
[394298378,1763428232580,-3254.4,0.00024174,2]
[394298379,1763428232590,-1045.69,0.00024174,2]
[394298380,1763428232600,-324.07,0.00024174,2]
[394298381,1763428232612,-9999.99,0.00024174,2]
[394298382,1763428232621,-150.99,0.00024174,2]
[394298383,1763428232632,-206.85,0.00024286,2]
[394298384,1763428232641,-3292.0,0.00024374,2]
[394298385,1763428232652,-867.0,0.00026196,2]
[394298386,1763428232662,-151.0,0.00026575,2]
[394298387,1763428232672,-151.0,0.00026575,2]
[394298388,1763428232681,-151.0,0.00026575,2]
[394298389,1763428232691,-151.0,0.00026575,2]
[394298390,1763428232701,-151.0,0.00026575,2]
[394298391,1763428232711,-151.0,0.00026575,2]
[394298392,1763428232720,-151.0,0.00026575,2]
[394298393,1763428232730,-10093.04,0.00026591,2]
[394298394,1763428232740,-6014.61,0.00026591,2]
[394298395,1763428232750,-645.48,0.00026676,2]
[394298396,1763428232760,-4609.0,0.0002671,2]
[394298397,1763428232770,-206.85,0.00026715,2]
[394298398,1763428232780,-166.31910834,0.0002672,2]
[394298399,1763428232790,-500.0,0.0002672,2]
[394298400,1763428232801,-1000.0,0.00027084,2]
[394298401,1763428232811,-861.05,0.00027493,30]
[394298402,1763428232820,-291.59,0.00028235,2]
[394298403,1763428232830,-27754.897011,0.00028706,2]
[394298404,1763428232841,-10470.5666756,0.00028706,2]
[394298405,1763428232852,-2401.17956998,0.00028799,4]
[394298406,1763428232866,-2401.17956997,0.00028799,4]
[394298407,1763428232878,-54.01841711,0.00028953,3]
[394298408,1763428233400,-944.98158289,0.00028953,3]
[394298409,1763428233412,-206.85,0.00029143,2]
[394298410,1763428233424,-981.0,0.00029271,2]
[394298411,1763428233434,-1000.0,0.0003047,2]
[394298412,1763428233444,-150.0,0.0003056,2]
[394298413,1763428233455,-150.0,0.0003056,120]
[394298414,1763428233465,-565.71,0.00031558,2]
[394298415,1763428233475,-206.85,0.00031572,2]
[394298416,1763428233486,-4011.984,0.00032,2]
[394298417,1763428233498,-200.0,0.00032022,2]
[394298418,1763428233508,-10515.56,0.00032022,2]
[394298419,1763428233519,-861.05,0.0003254,30]
[394298420,1763428233529,-8362.64929393,0.00032563,2]
[394298421,1763428233590,-393.56024574,0.00032563,2]
[394298422,1763428233603,-18998.68747133,0.00032563,2]
[394298423,1763428233616,-166.66,0.00032838,30]
[394298424,1763428233627,-479.1746172,0.0003295,2]
[394298425,1763428233638,-5843.21,0.00033034,2]
[394298426,1763428233647,-645.48,0.00033165,2]
[394298427,1763428233657,-1730.40712235,0.0003347,2]
[394298428,1763428233666,-450.0,0.00033529,7]
[394298429,1763428233675,-166.66,0.00033529,30]
[394298430,1763428233684,-222.26124738,0.00033613,2]
[394298431,1763428233694,-300.0,0.00033666,7]
[394298432,1763428233703,-182.84444324,0.00033684,2]
[394298433,1763428233712,-10470.5666756,0.00033684,2]
[394298434,1763428233721,-500.0,0.00033839,2]
[394298435,1763428233731,-1000.0,0.00033856,2]
[394298436,1763428233741,-500.0,0.00033872,2]
[394298437,1763428233750,-176.58,0.00034,90]
[394298438,1763428233760,-206.85,0.00034,2]
[394298439,1763428233769,-385.56097,0.0003404,2]
[394298440,1763428233779,-385.56097,0.0003404,2]
[394298441,1763428233789,-385.56096,0.0003406,2]
[394298442,1763428233798,-385.56097,0.0003407,2]
[394298443,1763428233808,-385.56096,0.0003409,2]
[394298444,1763428233817,-385.56096,0.0003409,2]
[394298445,1763428233827,-1077.157,0.00034175,38]
[394298446,1763428233837,-173.407,0.00034175,38]
[394298447,1763428233846,-166.66,0.00034221,30]
[394298448,1763428233857,-168.0,0.00034302,2]
[394298449,1763428233870,-5000.0,0.00034737,2]
[394298450,1763428233879,-168.0,0.0003481,2]
[394298451,1763428233889,-166.66,0.00034912,30]